[Event "American Cup Open Elimination 2024"]
[Site "Saint Louis"]
[Date "2024.03.17"]
[Round "3.5"]
[White "Caruana, Fabiano"]
[Black "So, Wesley"]
[Result "0-1"]
[ECO "C65"]
[WhiteElo "2804"]
[BlackElo "2789"]
[Annotator "TA"]
[PlyCount "106"]
[EventDate "2024.03.11"]
[EventType "k.o."]
[EventCountry "USA"]
[SourceTitle "playchess.com"]
[Source "ChessBase"]
[SourceQuality "1"]
[TimeControl "600+5"]

{[%evp 41,106,0,0,0,7,0,89,83,123,0,0,0,0,0,0,0,0,0,11,4,3,2,90,0,0,0,0,0,6,0,8,8,14,14,20,11,104,0,24,5,15,0,17,-41,-42,-80,27,0,0,0,0,0,0,-443,-443,-141,-125,-153,-149,-443,-443,-443,-443,-5439,-5181,-29960,-29946]} 1. e4 {[%emt 0:07:07]} e5 {[%emt 0:07:06]} 2. Nf3 {[%emt 0:00:04]} Nc6 {[%emt 0:00:04]} 3. Bb5 {[%emt 0:00:04]} Nf6 {[%emt 0:00:05]} 4. d3 {[%emt 0:00:08]} (4. O-O Nxe4 5. Re1 Nd6 6. Nxe5 Be7 7. Bf1 Nxe5 8. Rxe5 O-O 9. d4 Bf6 10. Re1 Re8 11. Bf4 Rxe1 12. Qxe1 Ne8 13. c3 d5 14. Bd3 g6 15. Nd2 Ng7 16. Qe2 c6 17. Re1 Bf5 18. Bxf5 Nxf5 19. Nf3 Ng7 20. Bh6 Nf5 21. Bf4 Ng7 22. Bh6 Nf5 23. Bf4 Ng7 {½-½ Caruana,F (2794)-So,W (2752) CCT Final playoff rapid 2023 (7.1)}) 4... Bc5 {[%emt 0:00:04]} 5. Bxc6 {[%emt 0:00:04]} dxc6 {[%emt 0:00:04]} 6. Nbd2 {[%emt 0:00:04] C65: Ruy Lopez: Berlin Defence (3...Nf6), unusual lines and 4 0-0 Bc5.} Nd7 {[%emt 0:00:05] 6...Nd7 is setting a new trend.} 7. O-O {[%emt 0:00:09]} a5 $5 {[%emt 0:00:04][%mdl 4] Leaves trodden paths.} 8. Nc4 {[%emt 0:00:20]} Qe7 {[%emt 0:00:04]} 9. Be3 {[%emt 0:00:07]} f6 {[%emt 0:00:18]} 10. Qd2 $146 {[%emt 0:00:32]} ({Predecessor:} 10. Re1 b5 11. Ncd2 Bxe3 12. Rxe3 a4 13. d4 O-O 14. c4 Bb7 15. Qc2 {1-0 Fedoseev,V (2674)-Jones,G (2623) Titled Tuesday intern op 03rd Jan Early blitz 2023 (8)}) 10... b6 {[%emt 0:00:16]} 11. a3 {[%emt 0:00:09]} Qf7 {[%emt 0:00:20]} 12. b4 {[%emt 0:00:11]} Be7 {[%emt 0:00:14]} 13. bxa5 {[%emt 0:00:10]} b5 {[%emt 0:00:04]} 14. Nb2 {[%emt 0:00:04]} O-O {[%emt 0:00:20]} 15. c4 {[%emt 0:00:07]} Nc5 {[%emt 0:00:08]} 16. Qc3 {[%emt 0:00:09]} Ne6 {[%emt 0:00:18]} 17. d4 {[%emt 0:00:16]} exd4 {[%emt 0:00:14]} 18. Nxd4 {[%emt 0:00:05]} Nxd4 19. Bxd4 {[%emt 0:00:04]} c5 {[%emt 0:00:32]} 20. Be3 {[%emt 0:00:04]} b4 {[%emt 0:00:19]} 21. axb4 cxb4 {[%emt 0:00:04]} 22. Qb3 {[%emt 0:00:08]} Ba6 {[%emt 0:00:11]} 23. Rfc1 {[%emt 0:00:04]} Qe6 {[%emt 0:00:14]} (23... f5 $11) 24. Nd3 $16 {[%emt 0:00:30]} Qxe4 {[%emt 0:00:05]} 25. Nc5 {[%emt 0:00:04]} (25. Nxb4 $2 Bxb4 26. Qxb4 Bb7 $19) (25. c5+ $1 $16 Kh8 26. Nxb4 (26. Qxb4 $2 {perishes.} Qxd3 27. Qf4 Rfc8 $19)) 25... Bxc5 $11 {[%emt 0:00:10]} 26. Bxc5 {[%emt 0:00:04]} Rfb8 $1 {[%emt 0:00:09]} 27. f3 {[%emt 0:00:04]} (27. Bxb4 $2 c5 28. Re1 Qg6 $19 (28... Rxb4 $2 29. Qxb4 $18)) 27... Qf5 {[%emt 0:00:16]} 28. Bf2 {[%emt 0:00:08]} (28. Bxb4 $2 {loses.} c5 29. Kh1 Rxb4 $19 (29... cxb4 $2 30. c5+ Kh8 31. Rab1 $19)) 28... c5 {[%emt 0:00:07]} 29. Rd1 {[%emt 0:00:17]} Rd8 {[%emt 0:00:03]} 30. Rd5 {[%emt 0:00:07]} Rxd5 {[%emt 0:00:05]} 31. cxd5 {[%emt 0:00:04]} Rc8 {[%emt 0:00:22]} (31... Qd3 $11 32. Qxd3 Bxd3 33. Bxc5 b3) 32. Rc1 {[%emt 0:00:08]} (32. d6+ $16 c4 33. Qxb4) 32... c4 $11 {[%emt 0:00:06]} 33. Qxb4 {[%emt 0:00:04]} Qxd5 {[%emt 0:00:03]} 34. h3 {[%emt 0:00:04]} h6 35. Qe1 {[%emt 0:00:25]} Kh7 {[%emt 0:00:12]} 36. Rd1 {[%emt 0:00:05]} Qb7 {[%emt 0:00:09]} 37. Bd4 {[%emt 0:00:14]} Rd8 {[%emt 0:00:05]} 38. Rb1 {[%emt 0:00:12]} Qc8 {[%emt 0:00:09]} (38... Qd5 $11 {remains equal.} 39. Bc3 Rd6) 39. Qc3 {[%emt 0:00:07]} ({White should play} 39. Qe4+ $16 Kh8 40. Rb6) 39... Rd6 {[%emt 0:00:06]} 40. Qc2+ {[%emt 0:00:05]} Kh8 {[%emt 0:00:04]} 41. Ba7 {[%emt 0:00:06]} Rd8 {[%emt 0:00:04]} 42. Qc3 {[%emt 0:00:14]} ({White should try} 42. Rb8 $11 Qc7 43. Rxd8+ Qxd8 44. Qc3) 42... Rd3 $15 {[%emt 0:00:06]} 43. Qe1 {[%emt 0:00:07] [#]} Rd8 {[%emt 0:00:04]} (43... Qd7 $1 $17 44. Bf2 c3) 44. Qe7 {[%emt 0:00:10]} c3 {[%emt 0:00:06]} 45. Rb8 {[%emt 0:00:04]} Qxb8 46. Bxb8 {[%emt 0:00:04]} Rxb8 {[%emt 0:00:08]} 47. Kf2 $2 {[%emt 0:00:16][%mdl 8192] [#]} (47. Qd6 $1 $11 {and White is okay.} Rb1+ 48. Kh2) 47... c2 $1 $19 {[%emt 0:00:04]} 48. Qe3 $2 {[%emt 0:00:04]} (48. Qe1 $19 Bd3 (48... Rc8 49. Qc1 $19) 49. Qe3) 48... Rc8 {[%emt 0:00:07]} 49. Qc1 {[%emt 0:00:04]} Bd3 {[%emt 0:00:08]} 50. Ke3 $2 {[%emt 0:00:03][%mdl 8192]} (50. h4 $17) 50... Bg6 $19 {[%emt 0:00:04]} 51. a6 {[%emt 0:00:05]} Ra8 {[%emt 0:00:03]} 52. g4 {[%emt 0:00:09]} (52. Qa3 $142) 52... Rxa6 $19 {[%emt 0:00:04]} 53. h4 {[%emt 0:00:03]} Rd6 {[%emt 0:00:07]} 0-1

[Event "American Cup Open Elimination 2024"]
[Site "Saint Louis"]
[Date "2024.03.17"]
[Round "3.6"]
[White "So, Wesley"]
[Black "Caruana, Fabiano"]
[Result "1/2-1/2"]
[ECO "E97"]
[WhiteElo "2789"]
[BlackElo "2804"]
[Annotator "TA"]
[PlyCount "85"]
[EventDate "2024.03.11"]
[EventType "k.o."]
[EventCountry "USA"]
[SourceTitle "playchess.com"]
[Source "ChessBase"]
[SourceQuality "1"]
[TimeControl "600+5"]

{[%evp 30,85,97,89,92,79,127,105,97,72,70,58,165,162,189,173,220,208,229,187,304,296,276,192,328,166,357,350,334,272,526,385,840,837,694,560,1036,1043,1228,410,502,520,522,487,2871,0,2443,2330,29990,0,0,0,0,0,0,0,0,0]} 1. d4 {[%emt 0:07:07]} Nf6 {[%emt 0:07:08]} 2. c4 {[%emt 0:00:03]} g6 {[%emt 0:00:04]} 3. Nc3 {[%emt 0:00:04]} Bg7 {[%emt 0:00:05]} 4. e4 {[%emt 0:00:05]} d6 {[%emt 0:00:04]} 5. Be2 {[%emt 0:00:04]} O-O {[%emt 0:00:05]} 6. Nf3 {[%emt 0:00:04]} Qe8 {[%emt 0:00:21] E97: King's Indian: Classical Main Line (6...e5 7 0-0 Nc6): 8 Be3 and 8 d5 Ne7, not 9 Ne1.} 7. e5 {[%emt 0:00:32]} Nfd7 {[%emt 0:00:09]} 8. exd6 {[%emt 0:00:13]} cxd6 {[%emt 0:00:05]} 9. O-O {[%emt 0:00:05]} Nc6 {[%emt 0:00:09]} 10. Re1 {[%emt 0:00:08]} Qd8 $146 {[%emt 0:00:05]} ({Predecessor:} 10... Nf6 11. h3 Qd8 12. Bg5 Bf5 13. d5 Ne5 14. Nd4 Bc8 15. Rc1 Ned7 16. Bf1 Re8 {0-1 Matthey,H (2279)-Stolz,M (2412) Oberliga Ost-A 0304 2003 (6.1)}) 11. Be3 {[%emt 0:00:12]} Nb6 {[%emt 0:00:16]} 12. b3 {[%emt 0:00:08]} Bf5 {[%emt 0:00:17]} 13. Rc1 {[%emt 0:00:05]} d5 {[%emt 0:00:06]} 14. c5 {[%emt 0:00:10]} Nc8 {[%emt 0:00:03]} 15. h3 {[%emt 0:00:07]} e6 {[%emt 0:00:20]} 16. Qd2 {[%emt 0:00:22]} h5 {[%emt 0:00:18]} 17. Bh6 {[%emt 0:00:11]} a5 {[%emt 0:00:28]} (17... a6 $142) 18. Bxg7 {[%emt 0:00:09]} Kxg7 {[%emt 0:00:04]} 19. Bb5 {[%emt 0:00:15]} N8a7 {[%emt 0:00:14]} 20. Bxc6 {[%emt 0:00:06]} Nxc6 {[%emt 0:00:04]} ({Better is} 20... bxc6 $14 21. Qe3 Rh8) 21. Nb5 $18 {[%emt 0:00:10]} Rb8 {[%emt 0:00:23]} 22. Nd6 {[%emt 0:00:24]} Qf6 {[%emt 0:00:05]} (22... Qe7 {is a better defense.} 23. Ne5 h4) 23. Ne5 $18 {[%emt 0:00:07]} Nxe5 {[%emt 0:00:13]} 24. Rxe5 {[%emt 0:00:06]} h4 {[%emt 0:00:12]} (24... Qh4 {keeps fighting.} 25. Rc3 (25. Qxa5 Qxd4 26. Qc7 Qb2 $16) 25... Rfd8) 25. Qxa5 $18 {[%emt 0:00:24]} Qg5 {[%emt 0:00:09]} 26. Rd1 {[%emt 0:00:07]} Rfd8 {[%emt 0:00:20]} (26... Ra8 $142 27. Qd2 Qxd2 28. Rxd2 b6) 27. Qd2 {[%emt 0:00:13]} (27. Qc7 $142 Rf8 28. Nxf5+ (28. Nxb7 Qh5 $18) 28... exf5 29. Rxd5) 27... Qh5 $2 {[%emt 0:00:05]} (27... Qxd2 {was called for.} 28. Rxd2 Rxd6 29. cxd6 Rd8) 28. b4 {[%emt 0:00:10]} Ra8 {[%emt 0:00:04]} 29. Rc1 {[%emt 0:00:09]} Ra3 $2 {[%emt 0:00:07]} (29... Rd7 30. Ra1 Rxd6) 30. Re3 {[%emt 0:00:08]} Rda8 $2 {[%emt 0:00:10]} (30... Ra7 31. Re5 Rda8) 31. Rxa3 $18 {[%emt 0:00:08]} Rxa3 {[%emt 0:00:04]} 32. Qf4 {[%emt 0:00:09]} ({Inferior is} 32. Nxb7 Bxh3 33. Rc3 (33. gxh3 $2 Rxh3 34. Qd1 Qg5+ 35. Kf1 Rh1+ 36. Ke2 Qg4+ 37. f3 Qg2+ 38. Kd3 Rxd1+ 39. Rxd1 Qxf3+ 40. Kd2 Qa3 $19) 33... Rxc3 34. Qxc3 Bxg2 35. Kxg2 Qg4+ 36. Kh2 Qf4+ 37. Kg2 Qg4+ 38. Kh2 Qf4+ 39. Kg2 Qg4+ $11) 32... Qe2 {[%emt 0:00:21]} 33. b5 {[%emt 0:00:07]} Rxa2 {[%emt 0:00:08]} 34. Qxh4 {[%emt 0:00:12]} (34. c6 $142 bxc6 35. bxc6 (35. Qxh4 Qd2 $11)) 34... Qd2 {[%emt 0:00:06]} 35. Rf1 {[%emt 0:00:08]} Bd3 {[%emt 0:00:04]} 36. Ne8+ {[%emt 0:00:08]} Kf8 {[%emt 0:00:04]} (36... Kg8 $142 37. Qf6 Qh6) 37. Qh8+ $18 {[%emt 0:00:04]} Ke7 {[%emt 0:00:03]} 38. Nd6 $1 {[%emt 0:00:07]} Bxf1 {[%emt 0:00:04]} 39. Nc8+ $2 {[%emt 0:00:04]} (39. Qe8+ {mates} Kf6 40. Qxf7+ (40. Kxf1 $2 Qxf2#) 40... Kg5 41. Qe7+ (41. Kxf1 $2 Qd1#) 41... Kh6 42. Nf7+ (42. Kxf1 $2 Qxf2#) 42... Kh7 43. Ne5+ (43. Kxf1 $2 Qxf2#) 43... Kh6 44. Qf8+ (44. Kxf1 $2 Qxf2#) 44... Kh5 45. g4+ (45. Kxf1 $2 Qd1#) (45. Qh8+ Qh6 46. g4+ Kg5 47. Nf7+ Kf4 48. Qxh6+ g5 49. Qxg5+ Kf3 50. Qe3#) 45... Kh4 46. Qf6+ (46. Kxf1 Qe2+ 47. Kg2 Qxf2+ 48. Qxf2+ Rxf2+ 49. Kxf2 Kg5 50. Kg3 Kh6) 46... Qg5 47. Nxg6+ Kxh3 48. Qf3#) 39... Kd7 $11 {[%emt 0:00:04]} 40. Nb6+ {[%emt 0:00:04]} Ke7 {[%emt 0:00:04]} 41. Nc8+ {[%emt 0:00:04]} Kd7 {[%emt 0:00:04]} 42. Nb6+ Ke7 43. Nc8+ 1/2-1/2

[Event "American Cup Open Elimination 2024"]
[Site "Saint Louis"]
[Date "2024.03.18"]
[Round "4.1"]
[White "So, Wesley"]
[Black "Robson, Ray"]
[Result "1/2-1/2"]
[ECO "E48"]
[WhiteElo "2789"]
[BlackElo "2696"]
[Annotator "TA"]
[PlyCount "100"]
[EventDate "2024.03.11"]
[EventType "k.o."]
[EventCountry "USA"]
[SourceTitle "playchess.com"]
[Source "ChessBase"]
[SourceQuality "1"]
[TimeControl "900+10"]

{[%evp 19,100,13,23,14,10,6,13,6,12,10,20,18,14,14,16,10,10,13,8,12,25,0,0,0,20,16,10,10,12,0,0,0,0,0,0,0,0,0,0,-16,-16,-16,-16,-16,-16,-16,-16,-16,-16,-16,-16,-16,-16,-16,-16,-16,-16,-16,-16,-16,-16,-16,-16,-16,-16,-16,-16,-16,-16,-16,-16,-16,-16,-16,-16,-16,-16,-16,0,-16,0,-16,0]} 1. d4 {[%emt 0:00:02]} Nf6 {[%emt 0:00:04]} 2. c4 {[%emt 0:00:02]} e6 {[%emt 0:00:02]} 3. Nc3 {[%emt 0:00:03]} Bb4 {[%emt 0:00:03]} 4. e3 {[%emt 0:00:01]} O-O {[%emt 0:00:04]} 5. Bd3 {[%emt 0:00:03]} c5 {[%emt 0:00:05]} 6. Nge2 {[%emt 0:00:02]} d5 {[%emt 0:00:10]} 7. cxd5 {[%emt 0:00:12]} cxd4 {[%emt 0:00:03]} 8. exd4 {[%emt 0:00:01]} Nxd5 {[%emt 0:00:05]} 9. a3 {[%emt 0:00:02]} Bd6 {[%emt 0:00:23]} 10. O-O {[%emt 0:00:03]} Nc6 {[%emt 0:00:04]} 11. Re1 {[%emt 0:00:02]} Qh4 {[%emt 0:00:09]} 12. g3 {[%emt 0:00:01]} Qh5 {[%emt 0:00:04]} 13. Nxd5 {[%emt 0:00:01]} exd5 {[%emt 0:00:05]} 14. Bf4 {[%emt 0:00:03]} Rd8 {[%emt 0:00:21]} 15. Qd2 {[%emt 0:00:02] [#] And now Bxd6 would win.} Bf8 {[%emt 0:00:19]} 16. Bc7 {[%emt 0:00:01]} Rd7 {[%emt 0:00:03]} 17. Ba5 {[%emt 0:00:02]} g5 $1 {[%emt 0:00:29] Dodges Nf4} 18. Bb4 {[%emt 0:00:02] Inhibits Rd6.} Nxb4 {[%emt 0:00:11]} 19. axb4 {[%emt 0:00:01]} Rd8 {[%emt 0:00:31]} 20. Nc3 {[%emt 0:00:14]} Bxb4 {[%emt 0:00:08] The position is equal.} 21. h4 {[%emt 0:00:02]} Bg4 {[%emt 0:00:01]} 22. Qxg5+ {[%emt 0:00:02]} Qxg5 {[%emt 0:00:01]} 23. hxg5 {[%emt 0:00:02]} a5 {[%emt 0:00:42][%cal Ba7a5,Ba5a4][%mdl 32]} 24. Re3 {[%emt 0:00:10]} Bxc3 {[%emt 0:02:08]} 25. bxc3 {[%emt 0:00:02]} a4 {[%emt 0:00:32]} 26. Ra3 {[%emt 0:00:20]} Bd1 {[%emt 0:01:27]} 27. Re7 {[%emt 0:01:12]} Bb3 {[%emt 0:03:05]} 28. Rxb7 {[%emt 0:00:10]} Rdc8 {[%emt 0:00:16]} 29. Raxb3 {[%emt 0:07:33]} axb3 {[%emt 0:00:04]} 30. Rxb3 {[%emt 0:00:02]} Rab8 {[%emt 0:02:04]} 31. Rxb8 {[%emt 0:02:32]} Rxb8 $11 {[%emt 0:00:01][%mdl 4096] Endgame. KR-KB} 32. c4 {[%emt 0:00:20]} Rb3 {[%emt 0:00:17]} 33. Bf1 {[%emt 0:00:07]} dxc4 {[%emt 0:00:03]} 34. Bxc4 {[%emt 0:00:02]} Rb4 {[%emt 0:00:03]} 35. Be2 {[%emt 0:00:08]} Rxd4 {[%emt 0:00:02]} 36. f4 {[%emt 0:00:02]} Ra4 {[%emt 0:00:31]} 37. Kf2 {[%emt 0:00:03]} Ra3 {[%emt 0:00:04]} 38. Bf3 {[%emt 0:00:20]} Kg7 {[%emt 0:00:09]} 39. Kg2 {[%emt 0:00:08]} Ra2+ {[%emt 0:00:13]} 40. Kh3 {[%emt 0:00:03]} f6 {[%emt 0:00:46]} 41. gxf6+ {[%emt 0:00:02]} Kxf6 {[%emt 0:00:01]} 42. Be4 {[%emt 0:00:10]} h6 {[%emt 0:00:10]} 43. Bd3 {[%emt 0:00:17]} Rd2 {[%emt 0:00:28]} 44. Be4 {[%emt 0:00:03]} Ke6 {[%emt 0:00:09]} 45. Kg4 {[%emt 0:00:05]} Rh2 {[%emt 0:00:20]} 46. Bg6 {[%emt 0:00:14]} Kf6 {[%emt 0:00:09]} 47. Be8 {[%emt 0:00:05]} Ke7 {[%emt 0:00:22]} 48. Bg6 {[%emt 0:00:03]} Kf6 {[%emt 0:00:02]} 49. Be8 {[%emt 0:00:02]} Ke7 {[%emt 0:00:01]} 50. Bg6 {[%emt 0:00:02]} Kf6 {[%emt 0:00:02] An interesting draw.   Weighted Error Value: White=0.02 (flawless) /Black=0.02 (flawless) .  OK:         	White=19    	Black=16     Best:        	---       	Black=2      Strong:       	---       	Black=1} 1/2-1/2

[Event "American Cup Open Elimination 2024"]
[Site "Saint Louis"]
[Date "2024.03.18"]
[Round "4.2"]
[White "Robson, Ray"]
[Black "So, Wesley"]
[Result "1-0"]
[ECO "E51"]
[WhiteElo "2696"]
[BlackElo "2789"]
[Annotator "TA"]
[PlyCount "59"]
[EventDate "2024.03.11"]
[EventType "k.o."]
[EventCountry "USA"]
[SourceTitle "playchess.com"]
[Source "ChessBase"]
[SourceQuality "1"]
[TimeControl "900+10"]

{[%evp 16,59,0,0,0,0,0,0,0,0,0,0,0,0,0,0,0,0,0,0,0,-17,0,-4,202,196,276,269,302,251,407,397,745,722,857,843,1304,1285,1281,1250,29980,5419,29991,29992,29992,29993]} 1. d4 {[%emt 0:00:01]} Nf6 {[%emt 0:00:03]} 2. c4 {[%emt 0:00:02]} e6 {[%emt 0:00:01]} 3. Nc3 {[%emt 0:00:03]} Bb4 {[%emt 0:00:01]} 4. e3 {[%emt 0:00:02]} O-O {[%emt 0:00:02]} 5. Bd3 {[%emt 0:00:02]} d5 {[%emt 0:00:01]} 6. a3 {[%emt 0:00:06]} dxc4 {[%emt 0:00:02]} 7. Bxc4 {[%emt 0:00:09]} Be7 {[%emt 0:00:02]} 8. Nf3 {[%emt 0:00:19]} c5 {[%emt 0:00:00]} 9. O-O {[%emt 0:00:34]} a6 {[%emt 0:00:02]} 10. dxc5 {[%emt 0:00:23]} Bxc5 {[%emt 0:00:01]} 11. Qe2 {[%emt 0:03:17]} b5 {[%emt 0:00:01] The position is equal.} 12. Ba2 {[%emt 0:00:22]} Bb7 {[%emt 0:00:02]} 13. e4 {[%emt 0:00:13][%cal Be3e4,Be4e5][%mdl 32]} Qc7 $1 {[%emt 0:00:01]} 14. e5 {[%emt 0:00:23]} Nfd7 {[%emt 0:00:12]} 15. Bf4 {[%emt 0:00:06]} Bxf3 $1 {[%emt 0:00:03]} 16. Qxf3 {[%emt 0:00:02]} Nc6 {[%emt 0:00:01][%cal Oc5d4]} 17. Ne4 {[%emt 0:01:31] Black must now prevent Rac1.} Ndxe5 {[%emt 0:03:17]} 18. Qh5 {[%emt 0:00:03]} (18. Qg3 $5 Bd4 $8 19. Nf6+ Kh8 20. Qh4 (20. Nh5 Rg8 $17) 20... gxf6 21. Qxf6+ Kg8 22. Qg5+ Kh8 23. Qf6+ Kg8 24. Qg5+ Kh8 25. Qf6+ $11) 18... Bd4 {[%emt 0:02:30][%cal Oc7e7]} 19. Rad1 {[%emt 0:00:14][%cal Od1d4,Ba1d1,Bd1d3,Bd3h3][%mdl 32] Strongly threatening Rxd4!} Rfd8 {[%emt 0:00:57] A mistake that costs the game.} (19... Qa7 $11 {and Black has nothing to worry.}) 20. Rd3 $1 $18 {[%emt 0:01:31] And now Rh3 would win.} Qe7 {[%emt 0:04:51]} (20... Bxb2 $2 21. Rg3 Qa7 22. Be3 $18 (22. Nf6+ Kf8 $18)) (20... Qb6 $142 21. Rh3 Kf8 (21... h6 $2 22. Bxh6 Kf8 23. Bxg7+ Ke7 24. Kh1 $18)) 21. Rh3 $1 {[%emt 0:01:41]} h6 {[%emt 0:00:01] [#]} (21... Bxb2 22. Qxh7+ Kf8 23. Qh8#) 22. Bg5 $1 $40 {[%emt 0:00:49][%mdl 128] White is out for blood.} Qe8 {[%emt 0:02:56] [#]} (22... Qc7) 23. Bxh6 $1 {[%emt 0:01:52]} (23. Bxd8 Rxd8 24. b4 Ng6 $11) 23... Ng6 $2 {[%emt 0:00:58]} (23... Nc4 24. Bxg7 Bxg7 25. Qh7+ Kf8) 24. Bg5 {[%emt 0:00:41] Threatening mate with Qh7+.} f6 {[%emt 0:00:01] [#]} 25. Re1 $1 {[%emt 0:03:34]} Ra7 {[%emt 0:00:56] [#]} (25... Kf8 26. Nxf6) 26. Nxf6+ $1 {[%emt 0:00:33][%mdl 512]} Bxf6 {[%emt 0:00:41]} 27. Rxe6 {[%emt 0:00:10]} Qf7 {[%emt 0:00:01]} 28. Rxf6 {[%emt 0:00:17]} ({Not} 28. Rxc6 Qxa2 29. Qh7+ (29. Qxg6 $2 Rd1#) 29... Kf8 30. Rxf6+ (30. Qxg6 $2 Rd1#) 30... gxf6 31. Bh6+ (31. Qxa7 $2 Rd1#) 31... Ke8 32. Qxg6+ (32. Qxa7 $2 Rd1#) 32... Qf7 $14) (28. Bxf6 $142 Nh4 29. Re1 (29. Rxc6 Qxa2 30. Rc1 Rc7 $18) 29... Ne5 30. Bxd8 (30. Bxf7+ Rxf7 31. Bxd8 g6 32. Qxh4 Rf5 33. Qh8+ Kf7 34. Rxe5 Rxe5 35. Qxe5 g5 36. Rh7+ Kg8 37. Qh8#) 30... Re7 31. Bxf7+ (31. Bxe7 Nc4 32. Qxh4 Qd5 33. Qh8+ Kf7 34. Qf8+ Kg6 35. Bb1+ Qf5 36. Bxf5#) 31... Kf8 32. Bxe7+ (32. Rxh4 Nf3+ 33. gxf3 Rxe1+ 34. Kg2 Rc1 35. Qg6 Rg1+ 36. Kxg1 b4 37. Rh8#) 32... Kxe7 33. Qxe5+ (33. Qxh4+ Kd7 34. Rxe5 Kd6 35. Qe7+ Kc6 36. Rc5+ Kb6 37. Qc7#) (33. Rxe5+ Kd6 34. Qxh4 Kxe5 35. Qe7+ Kf5 36. Rf3+ Kg4 37. h3#) 33... Kd7 34. Qe7+ (34. Rxh4 Kc6 35. Bd5+ Kb6 36. Qd6+ Ka7 37. Re7#) 34... Kc8 35. Rxh4 Kb8 36. Rh8#) 28... gxf6 {[%emt 0:00:18]} 29. Qxg6+ {[%emt 0:00:06]} Kf8 {[%emt 0:00:01]} 30. Rh8+ {[%emt 0:00:03] Weighted Error Value: White=0.02 (flawless) /Black=1.00.  Loses game:     	---       	Black=1      Mistake:       	---       	Black=3      OK:         	White=6     	Black=5      Best:        	White=1     	Black=1      Strong:       	White=4     	Black=2} (30. Bxf7 $2 Rd1#) 1-0

[Event "American Cup Open Elimination 2024"]
[Site "Saint Louis"]
[Date "2024.03.18"]
[Round "4.3"]
[White "Robson, Ray"]
[Black "So, Wesley"]
[Result "1/2-1/2"]
[ECO "D14"]
[WhiteElo "2696"]
[BlackElo "2789"]
[Annotator "TA"]
[PlyCount "91"]
[EventDate "2024.03.11"]
[EventType "k.o."]
[EventCountry "USA"]
[SourceTitle "playchess.com"]
[Source "ChessBase"]
[SourceQuality "1"]
[TimeControl "900+10"]

{[%evp 20,91,2,0,67,45,31,10,14,0,7,0,34,18,39,34,37,37,69,27,25,27,15,16,41,31,41,29,56,26,21,10,14,10,41,4,6,10,4,0,0,0,0,0,0,0,0,0,0,0,8,0,0,0,4,0,0,0,0,0,0,0,0,-22,-22,-22,-22,-22,0,-22,0,-22,0,-22]} 1. d4 {[%emt 0:00:02]} d5 {[%emt 0:00:01]} 2. c4 {[%emt 0:00:03]} c6 {[%emt 0:00:01]} 3. Nc3 {[%emt 0:01:06]} Nf6 {[%emt 0:00:08]} 4. cxd5 {[%emt 0:00:04]} cxd5 {[%emt 0:00:05]} 5. Bf4 {[%emt 0:00:02]} Nc6 {[%emt 0:00:01]} 6. e3 {[%emt 0:00:03]} Bf5 {[%emt 0:00:09]} 7. Nf3 {[%emt 0:00:38]} e6 {[%emt 0:00:01]} 8. Qb3 {[%emt 0:00:15]} Bb4 {[%emt 0:00:07]} 9. Bb5 {[%emt 0:00:25]} O-O {[%emt 0:00:39]} 10. Bxc6 {[%emt 0:00:32]} Bxc3+ {[%emt 0:00:02]} 11. Qxc3 {[%emt 0:00:19]} Ne4 {[%emt 0:00:19]} (11... Rc8 $11) 12. Qa3 $14 {[%emt 0:01:49]} bxc6 {[%emt 0:00:02]} 13. Rc1 {[%emt 0:00:42][%cal Of3e5]} Rc8 {[%emt 0:04:10]} 14. Nd2 {[%emt 0:01:05]} ({Of course not} 14. Qxa7 g5 (14... Ra8 $2 15. Qb7 $19) 15. Bg3 h5 $17 (15... Ra8 16. Qb7 $17)) 14... Nxd2 {[%emt 0:03:32]} 15. Kxd2 {[%emt 0:00:03][%cal Oh1d1]} Re8 {[%emt 0:00:01] Black is weak on the dark squares} 16. Rhd1 {[%emt 0:03:28][%cal Od2e2]} f6 {[%emt 0:00:21]} 17. Ke1 {[%emt 0:00:26][%cal Bd2e1,Be1f1,Bf1g1][%mdl 32]} e5 {[%emt 0:00:09]} 18. Bg3 {[%emt 0:00:10][%cal Bf4g3,Bg3d6,Bd6c5][%mdl 32]} Qb6 {[%emt 0:03:52]} 19. Kf1 {[%emt 0:00:15]} exd4 {[%emt 0:01:25]} 20. Rxd4 {[%emt 0:01:19]} Re4 {[%emt 0:00:12]} 21. Rxe4 {[%emt 0:01:17]} dxe4 {[%emt 0:00:12]} 22. Bd6 {[%emt 0:01:27]} Be6 {[%emt 0:00:21]} 23. Kg1 {[%emt 0:00:23]} Qb7 {[%emt 0:00:33]} 24. Bc5 {[%emt 0:00:20][%cal Oh2h3]} a5 {[%emt 0:00:17]} 25. b3 {[%emt 0:00:19]} Ra8 {[%emt 0:00:05]} 26. h3 {[%emt 0:00:50]} Bd5 {[%emt 0:00:12]} 27. Qa4 {[%emt 0:00:36]} Qb5 {[%emt 0:00:24] The position is equal.} 28. Qxb5 {[%emt 0:00:25]} cxb5 $11 {[%emt 0:00:01][%mdl 4096] Endgame. KRB-KRB} 29. Bd4 {[%emt 0:00:23]} a4 {[%emt 0:00:26]} 30. Rc5 {[%emt 0:00:12][%csl LRb5,LRd5]} axb3 $1 {[%emt 0:00:09]} 31. axb3 {[%emt 0:00:24]} Bxb3 {[%emt 0:00:02]} 32. Rxb5 {[%emt 0:00:02]} Bf7 {[%emt 0:00:09]} 33. g4 {[%emt 0:00:19]} h6 {[%emt 0:00:01]} 34. Kg2 {[%emt 0:00:22]} Re8 {[%emt 0:00:18]} 35. h4 {[%emt 0:00:21]} Re7 {[%emt 0:00:06]} 36. Kg3 {[%emt 0:00:10]} Kh7 {[%emt 0:00:02]} 37. g5 {[%emt 0:00:21]} fxg5 {[%emt 0:00:13]} 38. hxg5 {[%emt 0:00:01]} h5 {[%emt 0:00:00]} 39. Re5 {[%emt 0:00:13]} Rxe5 {[%emt 0:00:06]} 40. Bxe5 {[%emt 0:00:01] KB-KB} Kg6 {[%emt 0:00:02]} 41. Kh4 {[%emt 0:00:03]} Be6 {[%emt 0:00:02]} 42. Bd4 {[%emt 0:00:02]} Bd5 {[%emt 0:00:02]} 43. Be5 {[%emt 0:00:01]} Be6 {[%emt 0:00:00]} 44. Bd4 {[%emt 0:00:02]} Bd5 {[%emt 0:00:01]} 45. Be5 {[%emt 0:00:01]} Be6 46. Bd4 {Weighted Error Value: White=0.07 (flawless) /Black=0.12 (very precise) .  Inaccurate:     	White=3     	Black=4      OK:         	White=11    	Black=13     Best:        	White=2     	Black=1      Strong:       	---       	Black=1} 1/2-1/2